Cogmind - Beta 11 @@@ ROGUE MODE // 2022.04.13 @ 14:29:54 Player: maxwell Result: Destroyed by D-53 Grenadier with Mini Grenade Launcher Performance ------------- Evolutions (0) 0 Regions Visited (2) 400 Robots Destroyed (28) 140 Value Destroyed (386) 386 Prototype IDs (4) 80 Alien Tech Used (0) 0 Bonus (-16) -16 TOTAL SCORE: 990 Bonus ------- Friendly Fire -16 Cogmind --------- Core Integrity 0/250 Matter 280/300 Energy 80/280 System Corruption 0% Temperature Cool (1) Movement Treading (240) Ox1 Location -10/Mines Parts ------- > --- POWER (1) -------- Heavy Ion Engine > --- PROPULSION (2) --- Light Treads > --- UTILITY (2) ------ Large Storage Unit Improved Targeting Computer > --- WEAPON (2) ------- Light Assault Rifle > --- INVENTORY (15) --- Heavy Ion Engine High-capacity Matter Pod (73) Structural Scanner Improved Targeting Computer EM Shotgun EM Shotgun Light Assault Rifle Grenade Launcher Grenade Launcher Grenade Launcher Grenade Launcher Grenade Launcher Peak State ------------ > --- POWER ------------ Heavy Ion Engine > --- PROPULSION ------- Light Treads Light Treads > --- UTILITY ---------- Large Storage Unit Improved Targeting Computer > --- WEAPON ----------- Light Assault Rifle Light Assault Rifle > --- INVENTORY -------- Ion Engine Heavy Ion Engine Heavy Ion Engine Heavy Ion Engine EM Shotgun EM Shotgun EM Shotgun EM Shotgun Light Assault Rifle Light Assault Rifle Grenade Launcher Grenade Launcher Grenade Launcher Grenade Launcher [Rating: 12] Favorites ----------- Power Ion Engine Engine Ion Engine Propulsion Light Treads Treads Light Treads Utility Large Storage Unit Storage Large Storage Unit Processor Improved Targeting Computer Weapon Light Assault Rifle Energy Gun Small Laser Ballistic Gun Light Assault Rifle Build | -11 -10 -10 ------- Run | Scr Mat Min Slots Evolved . | . . . Power . | . . . Propulsion . | . . . Utility . | . . . Weapon . | . . . Parts Attached 16 | 6 7 3 Power 3 | 1 1 1 Engine 3 | 1 1 1 Core . | . . . Reactor . | . . . Propulsion 3 | 2 . 1 Treads 3 | 2 . 1 Leg . | . . . Wheel . | . . . Hover . | . . . Flight . | . . . Utility 5 | 1 4 . Device . | . . . Storage 3 | 1 2 . Processor 2 | . 2 . Hackware . | . . . Protection . | . . . Artifact . | . . . Weapon 5 | 2 2 1 Energy Gun 2 | 1 . 1 Energy Cannon . | . . . Ballistic Gun 3 | 1 2 . Ballistic Cannon . | . . . Launcher . | . . . Special Weapon . | . . . Impact Weapon . | . . . Slashing Weapon . | . . . Piercing Weapon . | . . . Special Melee Weapon . | . . . Unidentified Prototypes 1 | . 1 . Parts Lost 7 | . 2 5 Power 1 | . . 1 Propulsion 2 | . . 2 Utility . | . . . Weapon 4 | . 2 2 Highest Loss Streak 5 | . 2 5 To Critical Strikes . | . . . Average Slot Usage (%) 97 | . 97 98 Engine 13 | . 14 13 Treads 27 | . 28 27 Storage 14 | . 14 14 Processor 11 | . 11 14 Energy Gun 5 | . 6 . Ballistic Gun 22 | . 21 27 Naked Turns . | . . . Heaviest Build 30 | 13 30 30 Greatest Support 40 | 40 40 40 Greatest Overweight (x) . | . . . Average Overweight (x) . | . . . Largest Inventory Capacity 15 | 8 15 15 Average Capacity 13 | 6 13 15 Most Carried 15 | 2 15 15 Average Carried 9 | . 8 14 Final Capacity 15 | 8 15 15 Final Carried 15 | 2 15 12 Class Distribution -------------------- 100% | Mutant Dominant Class ---------------- Mutant | -10/Materials Mutant | -10/Mines Resources | -11 -10 -10 ----------- Run | Scr Mat Min Matter Collected 546 | 204 288 54 Remotely . | . . . Salvage Created 661 | . 576 85 Parts 56 | . 48 8 Haulers Intercepted 2 | . 2 . Recyclers Shooed 4 | . 4 . Parts Field Recycled . | . . . Retrieved Matter . | . . . Parts Self-Destructed . | . . . Prevented . | . . . Kills | -11 -10 -10 ------- Run | Scr Mat Min Combat Hostiles Destroyed 21 | . 15 6 Guns 21 | . 15 6 Classes Destroyed 6 | . 6 . Worker 2 | . 2 . Builder 2 | . 2 . Hauler 2 | . 2 . Watcher 1 | . 1 . Swarmer 15 | . 9 6 Grunt 6 | . 6 . Best Kill Streak 5 | . 5 3 Combat Bots Only 5 | . 5 3 Max Kills in Single Turn 2 | . 2 1 Gunslinging 1 | . 1 . Exploded . | . . . Melee . | . . . Uniques/NPCs Destroyed . | . . . Combat | -11 -10 -10 -------- Run | Scr Mat Min Damage Taken 1210 | . 517 693 Core 253 | . 62 191 Absorbed by Shields . | . . . Core Remaining (%) 100 | 100 . . Volleys Fired 81 | . 60 21 Largest 2 | . 2 2 Hottest 65 | . 60 65 Shots Fired 161 | . 120 41 Gun 161 | . 120 41 Cannon . | . . . Launcher . | . . . Special . | . . . Kinetic 131 | . 91 40 Thermal 29 | . 29 . Explosive . | . . . Electromagnetic 1 | . . 1 Robot Hit Streak 14 | . 14 8 Robot Miss Streak 4 | . 4 2 Penetration Max . | . . . Secondary Targets 5 | . 3 2 Max Gunslinging Chain 1 | . 1 1 Shots Hit Robots 104 | . 78 26 Core Hits 47 | . 40 7 Critical Kills . | . . . Critical Parts Destroyed . | . . . Critical Strikes . | . . . Melee Attacks . | . . . Impact . | . . . Slashing . | . . . Piercing . | . . . Sneak Attacks . | . . . Combat Hostiles . | . . . Follow-up Attacks . | . . . Damage Inflicted 1023 | . 817 206 Guns 1004 | . 798 206 Cannons . | . . . Explosions . | . . . Melee . | . . . Ramming 19 | . 19 . Kinetic 766 | . 568 198 Thermal 230 | . 230 . Explosive . | . . . Electromagnetic 8 | . . 8 Impact . | . . . Slashing . | . . . Piercing . | . . . Highest Corruption . | . . . Average Corruption . | . . . Corruption Purged . | . . . Corruption Blocked . | . . . Overload Shots . | . . . Overflow Damage . | . . . Projectiles . | . . . Explosions . | . . . Melee . | . . . Knockbacks . | . . . Impact . | . . . Kinetic . | . . . Secondary . | . . . Self-Inflicted Damage . | . . . Shots . | . . . Rammed 6 | . 6 . Targets Rammed 6 | . 6 . Kicked . | . . . Crushed . | . . . Highest Temperature 60 | . 60 26 Average Temperature 15 | . 22 3 Received Heat Transfer 162 | . 162 . Siege Activations . | . . . Robots Corrupted . | . . . Combat Hostiles . | . . . Parts Fried . | . . . Impact Corruptions . | . . . Robots Melted . | . . . Combat Hostiles . | . . . Parts Melted . | . . . Heat Transferred 525 | . 525 . Parts Sabotaged . | . . . Parts Stolen . | . . . Parts Stripped . | . . . Power Chain Reactions . | . . . Missiles Intercepted . | . . . Alert | -11 -10 -10 ------- Run | Scr Mat Min Peak Influence 291 | . 291 233 Initial 78 | . . 78 Average 158 | . 167 169 Maximum Alert Level 1 | . 1 1 Low Security (%) 68 | 100 66 64 Level 1 31 | . 33 35 Level 2 . | . . . Level 3 . | . . . Level 4 . | . . . Level 5 . | . . . High Security . | . . . Max Security . | . . . Squads Dispatched 2 | . 2 . Investigation 2 | . 2 . Extermination . | . . . Reinforcement . | . . . Assault . | . . . Garrison . | . . . Intercept . | . . . Searches Triggered . | . . . Construction Impeded . | . . . Haulers Reinforced . | . . . Active Scanning Responses . | . . . Cargo Convoy Interrupts . | . . . Stealth | -11 -10 -10 --------- Run | Scr Mat Min Distress Signals 1 | . 1 . Communications Jammed . | . . . Distress Signals . | . . . Times Spotted 33 | . 25 8 Peak Tracking Total 5 | . 5 3 Tactical Retreats . | . . . Traps | -11 -10 -10 ------- Run | Scr Mat Min Traps Triggered 1 | . 1 . Indirectly . | . . . Trap Hack Attempts . | . . . Triggered . | . . . Disarmed . | . . . Reprogrammed . | . . . Reused . | . . . Traps Extracted . | . . . Installed . | . . . Triggered . | . . . Machines | -11 -10 -10 ---------- Run | Scr Mat Min Machines Disabled . | . . . Max in Single Turn . | . . . Machines Sabotaged . | . . . Garrisons Compromised . | . . . Overloaded Fab Kills . | . . . Hacking | -11 -10 -10 --------- Run | Scr Mat Min Machines Accessed 9 | . 8 1 Terminals 8 | . 7 1 Fabricators . | . . . Repair Stations . | . . . Recycling Units 1 | . 1 . Scanalyzers . | . . . Garrison Access . | . . . Total Hacks 35 | . 25 10 Successful 17 | . 11 6 Failed 16 | . 13 3 Catastrophic . | . . . Database Lockouts 2 | . 1 1 Manual 29 | . 19 10 Terminals 33 | . 23 10 Fabricators . | . . . Repair Stations . | . . . Recycling Units 2 | . 2 . Scanalyzers . | . . . Garrison Access . | . . . Terminal Hacks 11 | . 5 6 Record 1 | . 1 . Part Schematic 1 | . 1 . Robot Analysis 4 | . 2 2 Prototype ID Bank 4 | . . 4 Terminal Index 1 | . 1 . Fabricator Hacks . | . . . Repair Station Hacks . | . . . Recycling Unit Hacks 1 | . 1 . Retrieve Components 1 | . 1 . Scanalyzer . | . . . Garrison Access Hacks . | . . . Unauthorized Hacks 5 | . 5 . Terminals 4 | . 4 . Assimilate 1 | . 1 . Botnet 2 | . 2 . Operators 1 | . 1 . Fabricators . | . . . Repair Stations . | . . . Recycling Units 1 | . 1 . Tunnel 1 | . 1 . Scanalyzers . | . . . Garrison Access . | . . . Data Cores Recovered . | . . . Used . | . . . Hacking Detections 7 | . 6 1 Full Trace Events 1 | . 1 . Feedback Events . | . . . Feedback Blocked . | . . . Robot Schematics Acquired . | . . . Robots Built . | . . . Authchips . | . . . Time . | . . . Total Robot Build Rating . | . . . Part Schematics Acquired 1 | . 1 . Parts Built . | . . . Authchips . | . . . Time . | . . . Total Part Build Rating . | . . . Parts Repaired . | . . . Time . | . . . Parts Recycled . | . . . Recycled Matter . | . . . Retrieved Matter . | . . . Retrieved Components 6 | . 6 . Parts Scanalyzed . | . . . Part Schematics Acquired . | . . . Parts Damaged . | . . . Bothacking | -11 -10 -10 ------------ Run | Scr Mat Min Used RIF Installer . | . . . Robots Hacked . | . . . Non-combat . | . . . Combat . | . . . Robot Hacks Applied . | . . . Relay Couplers Released . | . . . Fabnet Peak Effective % . | . . . Robots Rewired . | . . . Allies Hacked . | . . . Hacks Repelled . | . . . Allies | -11 -10 -10 -------- Run | Scr Mat Min Total Allies 1 | . 1 . Largest Group 1 | . 1 1 Highest-Rated Group 10 | . 10 10 Highest-Rated Ally 10 | . 10 10 Total Orders 2 | . 2 . STAY 1 | . 1 . FOLLOW 1 | . 1 . Ally Attacks . | . . . Total Damage . | . . . Kills . | . . . Allies Corrupted . | . . . Allies Melted . | . . . Intel | -11 -10 -10 ------- Run | Scr Mat Min Robot Analysis Total 4 | . 2 2 Derelict Logs Recovered . | . . . Drone Launches . | . . . Drone Recoveries . | . . . Exploration | -11 -10 -10 ------------- Run | Scr Mat Min Turns Passed 1389 | 78 1097 214 Spaces Moved 690 | 47 546 97 Core 6 | 6 . . Treads 684 | 41 546 97 Legs . | . . . Wheels . | . . . Hover . | . . . Flight . | . . . Fastest Speed 50 | 50 160 160 Average Speed 159 | 145 160 160 Slowest Speed 160 | 160 160 160 Overloaded Moves . | . . . Propulsion Burnouts . | . . . Robots Hopped . | . . . Cave-ins Triggered . | . . . Exploration Rate (%) 32 | 4 74 19 Regions Visited 2 Branch Regions 1 Pre-discovered Areas 1 | . 1 . Known Exits Taken . | . . . Unknown Exits Taken 2 | 1 1 . Scrap Searched . | . . . Spaces Dug . | . . . Terrain Destroyed . | . . . Melee . | . . . Projectile . | . . . AOE . | . . . Terrain Rammed . | . . . Walls Destroyed . | . . . Machines Disabled . | . . . Actions | -11 -10 -10 --------- Run | Scr Mat Min Total 836 | 54 659 123 Wait 17 | . 15 2 Move 688 | 46 545 97 Hop . | . . . Pick Up 21 | 2 19 . Fast Attach 9 | 6 3 . Attach 5 | . 2 3 Detach . | . . . Swap 2 | . 2 . Drop 7 | . 7 . Fire 81 | . 60 21 Melee . | . . . Ram . | . . . Kick . | . . . Crush 6 | . 6 . Escape Stasis . | . . . Rewire . | . . . Trap . | . . . Miscellaneous . | . . . Route ------- -11/Scrapyard -10/Materials (discovered 4 exits: [*Mat x2] / *Min x2) -10/Mines (discovered 1 exit: [*Mat]) History --------- Turn | Location | Event 4 | -11/Scrapyard | Discovered new exit (range 15) 79 | -11/Scrapyard | Entered Materials 276 | -10/Materials | Discovered new exit (range 16) 317 | -10/Materials | Build established: Mutant 428 | -10/Materials | Discovered new exit (range 16) 679 | -10/Materials | Discovered new exit (range 5) 766 | -10/Materials | Discovered new exit (range 5) 951 | -10/Materials | Central database locked down 1176 | -10/Materials | Entered Mines 1176 | -10/Mines | Accompanied by 1 ally 1181 | -10/Mines | Central database locked down 1256 | -10/Mines | Discovered new exit (range 9) 1366 | -10/Mines | Assembled infested the area 1374 | -10/Mines | Core integrity fell below 50% 1390 | -10/Mines | Destroyed by D-53 Grenadier with Mini Grenade Launcher Last Messages --------------- 01305_ Switching to secondary target: S-10 Pest. 01308_ S-10 Pest destroyed. 01308_ Switching to secondary target: S-10 Pest. 01309_ Technician 1a reports 0b10 security level has risen to 1. 01313_ S-10 Pest destroyed. 01316_ Acquired 15 matter. 01317_ Acquired 10 matter. 01320_ Acquired 11 matter. 01366_ ALERT: Infestation in the mines, dispatching Demolisher response squad. 01371_ Lgt. Treads destroyed. 01371_ U-05 Engineer destroyed. 01376_ The unstable cave ceiling collapses. 01377_ Technician 1a destroyed. 01383_ The unstable cave ceiling collapses. 01383_ Lgt. Assault Rifle destroyed. 01385_ Lgt. Treads destroyed. 01389_ The unstable cave ceiling collapses. 01389_ Hvy. Ion Engine destroyed. 01389_ EM Shotgun destroyed. Map ----- +----------------------------------------------------+ | ???????????????????????# #???????? | | ???????????????????????##### ##???????? | | ???????????????????????????# #????????? | | ???????????????????????????# ######???? | | ???????????????????????????# #???? | | ???????????????????????????##### #???? | | ???????????????????????????????# #???? | | ???????????????????????????????# #???? | | ???????????????????????????????# #???? | | ???????????????????????????????# #???? | | ???????????????????????????????# ##??? | | ???????????????????????? ?????## #??? | | ???????????????????????? ????## #??? | | ???????????????????????# ????# ##?? | | ???????????????????????# ????# #?? | | ???????????????????????# #???## #?? | | ???????????????????????# #????## #?? | | ???????????????????????# #???### ##?? | | ???????????????????????# #### ##?? | | ???????????????????????# # # #?? | | ??????????????????????## #?? | | ?????????????????????## ##?? | | ????????????????????## # ###??? | | ????????????????????# ##????? | | ????????????????##### #?????? | | ????????????????# @ #?????? | | ????????????????# ##?????? | | ????????????????# ## ##??????? | | ???????????????????# # #???????? | | ???????????????????#?## ##???????? | | ??????????????????????## d% ##????????? | | ???????????????????????# %d##?????????? | | ???????????????????????# #########??? | | ???????????????????????# ##?? | | ???????????????????????# #?? | | ???????????????????????# ## # #?? | | ???????????????????????# ## ## < #?? | | ???????????????????????## #?### #?? | | ????????????????????????## #???### #?? | | ?????????????????????????####???### #?? | | ????????????????????????????????#* #?? | | ????????????????????????????????#=###?? | | ????????????????????????????????# #???? | | ????????????????????????????????# #???? | | ?????????????????????????????####=###?? | | ?????????????????????????????# = #?? | | ?????????????????????????????# #?? | | ?????????????????????????????# #?? | | ?????????????????????????????# #?? | | ?????????????????????????????########?? | +----------------------------------------------------+ Best States ------------- Heat Dissipation 25 Energy Generation 14 Energy Capacity 280 Matter Stores 300 Matter Capacity 300 Sight Range 16 Terrain Scan Density 10 Evasion (%) 40 Targeting Accuracy 6 Recoil Reduction 2 Item Schematics ----------------- Huge Storage Unit | -10/Materials | Hacked Robot Schematics ------------------ None Fabricated ------------ Nothing Alien Tech Used ----------------- None Achievements -------------- None Challenges ------------ None Game ------ Seed RestorationGyrokineticFlail Manual? 0 Play Time 00:06:35 Cumulative 233.8 hours Start 2022.04.13 @ 14:24:29 End 2022.04.13 @ 14:29:54 Sessions 1 Manual Loads 0 Difficulty Rogue Special Mode None Game No. 336 Rogue 314 Adventurer 4 Explorer 18 Win Type - Total 10 Types 8/0/0/2/0/0/0/0/0 Lore% 70 Gallery% 88 Achievement% 71 Wizard Run 0 Options --------- ASCII 0 Keyboard 1 Movement Numpad Keybinds 0 Fullscreen 1 Font 18/SmallcapsGlow Map View 76x50 Tactical HUD 1 Map Filters NONE Filters NONE Steam 1 RUN: 3deeca1f-0765-4bfd-bb95-c1abb6d8ffbd